fUST/lending_fUST_20240811
["ID","MTS","AMOUNT","RATE_DAILY","PERIOD"]
[334602493,1723319446171,-500.0,0.00019999,2]
[334602494,1723319446179,-500.0,0.00019999,2]
[334602495,1723319446189,-500.0,0.00019999,2]
[334602496,1723319446198,-500.0,0.00019999,2]
[334602497,1723319446207,-215.71750369,0.00019999,2]
[334602498,1723319446216,-500.0,0.00019999,2]
[334602499,1723319446226,-500.0,0.00019999,2]
[334602500,1723319446236,-500.0,0.00019999,2]
[334602501,1723319446245,-500.0,0.00019999,2]
[334602502,1723319446254,-153.34200433,0.00019999,2]
[334602503,1723319446264,-500.0,0.00019999,2]
[334602504,1723319446275,-500.0,0.00019999,2]
[334602505,1723319446284,-300.0,0.00019999,2]
[334602506,1723319446293,-12587.73694999,0.0002,2]
[334602507,1723319446303,-22588.71804003,0.0002,2]
[334602508,1723319754990,159.00942,0.00014247,2]
[334602539,1723320359145,-193.49547103,0.00016038,2]
[334602552,1723320438097,-321.05904362,0.00018361,2]
[334602584,1723320545193,-880.88953528,0.00018361,2]
[334602585,1723320545215,-240.4201745,0.00018475,2]
[334602586,1723320563112,-179.774618,0.00018537,2]
[334602627,1723320631977,-397.472058,0.00018904,2]
[334602629,1723320631987,-460.04462709,0.0001891,4]
[334602631,1723320631997,-154.77557542,0.0001895,2]
[334602633,1723320632006,-357.07743762,0.0001895,3]
[334602635,1723320632016,-601.1945502,0.0001895,2]
[334602637,1723320632026,-159.33909934,0.00018976,2]
[334602639,1723320632037,-5239.32328819,0.00018999,2]
[334602641,1723320632047,-386.57214054,0.00019155,2]
[334602643,1723320632056,-758.20403751,0.00019167,2]
[334602645,1723320632065,-163.860218,0.00019178,2]
[334602647,1723320632075,-300.0,0.0001919,2]
[334602649,1723320632084,-300.0,0.0001919,2]
[334602651,1723320632094,-3568.1978617,0.0001924,2]
[334602653,1723320632104,-153.0,0.00019241,2]
[334602655,1723320632113,-1533.42482603,0.00019256,2]
[334602657,1723320632125,-862.42234122,0.00019451,2]
[334602659,1723320632135,-25.27290342,0.00019451,2]
[334602662,1723320632152,-257.51912808,0.00019451,2]
[334602664,1723320632162,-227.8744067,0.00019477,2]
[334602666,1723320632172,-504.80821134,0.00019477,2]
[334602668,1723320632181,-309.33495762,0.00019477,2]
[334602670,1723320632191,-154.76012181,0.00019547,2]
[334602672,1723320632201,-154.91162192,0.00019547,2]
[334602674,1723320632211,-3568.1978617,0.00019611,2]
[334602676,1723320632220,-1000.0,0.00019773,2]
[334602679,1723320632230,-1000.0,0.00019794,2]
[334602681,1723320632239,-150.0,0.00019821,2]
[334602683,1723320632249,-193.09351,0.00019886,2]
[334602685,1723320632259,-579.397852,0.00019886,2]
[334602687,1723320632269,-455.056127,0.00019886,2]
[334602689,1723320632278,-215.33430216,0.00019887,2]
[334602691,1723320632288,-1981.90895184,0.000199,2]
[334602692,1723320632297,-1058.81162394,0.00019922,2]
[334602788,1723320781093,159.00942,0.00014247,2]
[334602804,1723320858125,1669.01055043,0.00014247,2]
[334602829,1723321544155,-325.77206917,0.00018,2]
[334602831,1723321639502,159.00942,0.00014247,2]
[334602832,1723321645087,-245.45777017,0.00017269,2]
[334602833,1723321645108,-231.53671139,0.00017269,2]
[334602836,1723321748263,-154.79103211,0.00016532,2]
[334602837,1723321748286,-154.84363402,0.00017269,2]
[334602838,1723321755123,-3246.5378907,0.00018,2]
[334602839,1723321757107,-1667.01332832,0.00018,2]
[334602886,1723321832126,-179.774609,0.00018822,2]
[334602888,1723321832136,-341.60475512,0.00018904,2]
[334602894,1723321832185,-35.99369988,0.00018904,2]
[334602896,1723321832197,-372.70044747,0.00018945,2]
[334602898,1723321832206,-595.08016318,0.00019183,2]
[334602900,1723321832218,-2516.76458766,0.00019183,2]
[334602902,1723321832229,-370.37936412,0.00019256,2]
[334602904,1723321832238,-165.53506923,0.00019256,2]
[334602906,1723321832248,-412.94081029,0.00019477,2]
[334602908,1723321832257,-154.83726039,0.00019477,2]
[334602910,1723321832267,-188.19804262,0.00019477,2]
[334602912,1723321832276,-300.0,0.00019526,2]
[334602914,1723321832285,-300.0,0.00019526,2]
[334602916,1723321832295,-381.40462836,0.00019527,2]
[334602982,1723321840530,-2730.44012249,0.00019527,2]
[334602983,1723321840541,-1000.0,0.00019736,2]
[334602984,1723321840551,-178.83522,0.00019738,2]
[334602985,1723321840562,-705.958735,0.00019738,2]
[334602986,1723321840572,-153.7654797,0.00019738,2]
[334602987,1723321840590,-698.8607013,0.00019738,2]
[334602988,1723321840600,-193.093511,0.00019738,2]
[334602989,1723321840609,-153.0,0.00019742,2]
[334602990,1723321840618,-153.0,0.00019742,2]
[334602991,1723321840628,-153.0,0.00019742,2]
[334602992,1723321840638,-153.0,0.00019742,2]
[334602993,1723321840647,-153.0,0.00019742,2]
[334602994,1723321840657,-153.0,0.00019742,2]
[334602995,1723321840666,-153.0,0.00019742,2]
[334602996,1723321840675,-153.0,0.00019742,2]
[334602997,1723321840685,-153.0,0.00019742,2]
[334602998,1723321840694,-153.0,0.00019742,2]
[334602999,1723321840704,-153.0,0.00019742,2]
[334603000,1723321840713,-153.0,0.00019742,2]
[334603001,1723321840722,-153.0,0.00019742,2]
[334603002,1723321840731,-858.51202332,0.00019782,2]
[334603003,1723321840741,-1000.0,0.00019791,2]
[334603004,1723321840750,-328.70707109,0.00019813,2]
[334603005,1723321840760,-5198.83121852,0.00019861,2]
[334603006,1723321840770,-1418.22505249,0.00019864,2]
[334603007,1723321840779,-1656.9296565,0.0001987,2]
[334603008,1723321840788,-1418.22505245,0.00019873,2]
[334603009,1723321840798,-1418.22505245,0.00019882,2]
[334603010,1723321840807,-1000.0,0.00019889,2]
[334603011,1723321840816,-1418.22505245,0.00019891,2]
[334603012,1723321840826,-1418.22505245,0.000199,2]
[334603013,1723321840835,-2059.74455003,0.000199,2]
[334603014,1723321840845,-620.00550702,0.00019937,2]
[334603015,1723321840855,-200.0,0.00019973,2]
[334603016,1723321840864,-200.0,0.00019973,2]
[334603017,1723321840874,-200.0,0.00019973,2]
[334603018,1723321840883,-194.82,0.0001998,3]
[334603019,1723321840893,-705.958735,0.00019984,2]
[334603020,1723321840903,-852.626181,0.00019984,2]
[334603021,1723321840913,-17688.49308995,0.00019989,11]
[334603022,1723321840923,-165.49174628,0.00019989,2]
[334603023,1723321840934,-500.0,0.00019989,2]
[334603024,1723321840945,-500.0,0.00019989,2]
[334603025,1723321840963,-311.95309421,0.00019989,2]
[334603026,1723321840972,-500.0,0.00019989,2]
[334603027,1723321840981,-500.0,0.00019989,2]
[334603028,1723321840990,-500.0,0.00019989,2]
[334603029,1723321840999,-500.0,0.00019989,2]
[334603030,1723321841008,-500.0,0.00019989,2]
[334603031,1723321841017,-500.0,0.00019989,2]
[334603032,1723321841026,-500.0,0.00019989,2]
[334603033,1723321841035,-335.39748965,0.00019989,2]
[334603034,1723321841043,-500.0,0.00019989,2]
[334603035,1723321841052,-500.0,0.00019989,2]
[334603036,1723321841061,-249.59384781,0.00019989,2]
[334603037,1723321841071,-500.0,0.00019989,2]
[334603038,1723321841081,-500.0,0.00019989,2]
[334603039,1723321841091,-500.0,0.00019989,2]
[334603040,1723321841104,-500.0,0.00019989,2]
[334603041,1723321841115,-358.25192725,0.00019989,2]
[334603042,1723321841124,-500.0,0.00019989,2]
[334603043,1723321841135,-500.0,0.00019989,2]
[334603044,1723321841144,-350.77634908,0.00019989,2]
[334603045,1723321841153,-500.0,0.00019989,2]
[334603046,1723321841162,-15219.9181807,0.0001999,11]
[334603047,1723321841173,-337195.986536,0.0001999,2]
[334603048,1723321841182,-39941.62247351,0.0001999,2]
[334603049,1723321841192,-151.0,0.0001999,2]
[334603050,1723321841203,-151.0,0.0001999,2]
[334603051,1723321841212,-151.0,0.0001999,2]
[334603052,1723321841222,-150.01,0.00019999,2]
[334603053,1723321841231,-2993.33781285,0.00019999,2]
[334603054,1723321841240,-155.3772633,0.00019999,2]
[334603055,1723321841249,-19865.91460929,0.0002,2]
[334603056,1723321841258,-154.82677128,0.0002,2]
[334603057,1723321841270,-8032.56183631,0.0002,2]
[334603058,1723321841279,-10494.9163161,0.0002,2]
[334603059,1723321841288,-24271.73575449,0.0002,2]
[334603060,1723321841297,-295.05160047,0.0002,2]
[334603061,1723321841307,-84542.25239776,0.0002,2]
[334603086,1723321846363,-281.732335,0.0001999,2]
[334603087,1723321846373,-150.01,0.00019999,2]
[334603088,1723321846383,-495.8032044,0.00019999,2]
[334603089,1723321846392,-729.38411709,0.00019999,2]
[334603090,1723321846421,-2263.95369576,0.00019999,2]
[334603091,1723321846431,-106934.87424448,0.0002,2]
[334603092,1723321846441,-1627.09162866,0.0002,2]
[334603093,1723321846450,-1444.82566449,0.0002,2]
[334603094,1723321846463,-217.43017686,0.0002,2]
[334603096,1723321846472,-4097.48469225,0.0002,2]
[334603097,1723321846482,-63029.3754,0.0002,7]
[334603099,1723321846492,-150.112233,0.0002,2]
[334603101,1723321846502,-151.0,0.0002,2]
[334603103,1723321846511,-156.4788062,0.0002,2]
[334603104,1723321846522,-151.0,0.0002,2]
[334603105,1723321846533,-151.0,0.0002,2]
[334603106,1723321846543,-151.0,0.0002,2]
[334603107,1723321846553,-151.0,0.0002,2]
[334603108,1723321846563,-151.0,0.0002,2]
[334603109,1723321846573,-220.242682,0.0002,2]
[334603110,1723321846582,-3000.0,0.0002,2]
[334603111,1723321846591,-151.0,0.0002,2]
[334603112,1723321846601,-151.0,0.0002,2]
[334603113,1723321846610,-237.693936,0.0002,2]
[334603114,1723321846619,-237.693936,0.0002,2]
[334603115,1723321846628,-237.693936,0.0002,2]
[334603116,1723321846638,-237.693936,0.0002,2]
[334603117,1723321846647,-237.693936,0.0002,2]
[334603118,1723321846656,-237.693936,0.0002,2]
[334603119,1723321846666,-237.693936,0.0002,2]
[334603120,1723321846676,-237.693936,0.0002,2]
[334603121,1723321846686,-151.0,0.0002,2]
[334603122,1723321846696,-151.0,0.0002,2]
[334603123,1723321846708,-151.0,0.0002,2]
[334603124,1723321846718,-151.0,0.0002,2]
[334603125,1723321846727,-151.0,0.0002,2]
[334603126,1723321846736,-151.0,0.0002,2]
[334603127,1723321846747,-301.7956,0.0002,2]
[334603128,1723321846756,-151.0,0.0002,2]
[334603129,1723321846765,-151.0,0.0002,2]
[334603130,1723321846775,-237.784962,0.0002,2]
[334603131,1723321846784,-151.0,0.0002,2]
[334603132,1723321846794,-151.0,0.0002,2]
[334603133,1723321846804,-217.070944,0.0002,2]
[334603134,1723321846813,-217.070944,0.0002,2]
[334603135,1723321846823,-217.070944,0.0002,2]
[334603136,1723321846832,-217.070944,0.0002,2]
[334603137,1723321846841,-217.070944,0.0002,2]
[334603138,1723321846850,-217.070944,0.0002,2]
[334603139,1723321846859,-217.070944,0.0002,2]
[334603140,1723321846869,-217.070944,0.0002,2]
[334603141,1723321846878,-151.0,0.0002,2]
[334603142,1723321846887,-151.0,0.0002,2]
[334603143,1723321846896,-151.0,0.0002,2]
[334603144,1723321846906,-151.0,0.0002,2]
[334603145,1723321846916,-222.701913,0.0002,2]
[334603146,1723321846925,-222.701913,0.0002,2]
[334603147,1723321846934,-222.701913,0.0002,2]
[334603148,1723321846943,-222.701913,0.0002,2]
[334603149,1723321846955,-222.701913,0.0002,2]
[334603150,1723321846964,-222.701913,0.0002,2]
[334603151,1723321846974,-222.701913,0.0002,2]
[334603152,1723321846983,-222.701913,0.0002,2]
[334603153,1723321846993,-151.0,0.0002,2]
[334603154,1723321847004,-151.0,0.0002,2]
[334603155,1723321847014,-151.0,0.0002,2]
[334603156,1723321847023,-151.0,0.0002,2]
[334603157,1723321847034,-260.875624,0.0002,2]
[334603158,1723321847043,-280.346872,0.0002,2]
[334603159,1723321847052,-151.0,0.0002,2]
[334603160,1723321847061,-151.0,0.0002,2]
[334603161,1723321847071,-188.795384,0.0002,2]
[334603162,1723321847080,-281.732335,0.0002,2]
[334603163,1723321847090,-281.732335,0.0002,2]
[334603164,1723321847104,-3000.0,0.0002001,2]
[334603165,1723321847113,-3000.0,0.0002002,2]
[334603166,1723321847122,-3000.0,0.0002003,2]
[334603167,1723321847132,-3000.0,0.0002004,2]
[334603168,1723321847142,-3000.0,0.0002005,2]
[334603169,1723321847151,-3000.0,0.0002006,2]
[334603170,1723321847161,-151.0,0.0002006,2]
[334603171,1723321847173,-217.070944,0.0002006,2]
[334603172,1723321847183,-217.070944,0.0002006,2]
[334603173,1723321847193,-151.0,0.0002006,2]
[334603174,1723321847205,-222.701913,0.0002006,2]
[334603175,1723321847214,-222.701913,0.0002006,2]
[334603176,1723321847225,-151.0,0.0002006,2]
[334603177,1723321847235,-151.0,0.0002007,2]
[334603178,1723321847246,-3000.0,0.0002007,2]
[334603179,1723321847255,-237.693936,0.0002007,2]
[334603180,1723321847265,-237.693936,0.0002007,2]
[334603181,1723321847275,-3000.0,0.0002008,2]
[334603182,1723321847284,-3000.0,0.0002009,2]
[334603183,1723321847294,-3000.0,0.000201,2]
[334603184,1723321847304,-3000.0,0.0002011,2]
[334603185,1723321847313,-3000.0,0.0002012,2]
[334603186,1723321847322,-151.0,0.00020121,2]
[334603187,1723321847332,-1412.0,0.00020126,2]
[334603188,1723321847342,-150.0,0.00020126,2]
[334603189,1723321847351,-507.0,0.00020126,2]
[334603190,1723321847361,-3000.0,0.0002013,2]
[334603191,1723321847370,-214.009,0.00020132,2]
[334603192,1723321847379,-150.0,0.00020133,2]
[334603193,1723321847389,-579.397852,0.00020135,2]
[334603194,1723321847399,-455.056127,0.00020135,2]
[334603195,1723321847408,-3000.0,0.0002014,2]
[334603196,1723321847418,-3000.0,0.0002015,2]
[334603197,1723321847428,-3000.0,0.0002016,2]
[334603198,1723321847437,-151.0,0.0002016,2]
[334603199,1723321847447,-217.070944,0.0002016,2]
[334603200,1723321847458,-217.070944,0.0002016,2]
[334603201,1723321847468,-151.0,0.0002016,2]
[334603202,1723321847478,-222.701913,0.0002016,2]
[334603203,1723321847488,-222.701913,0.0002016,2]
[334603204,1723321847497,-151.0,0.0002016,2]
[334603205,1723321847507,-151.0,0.0002017,2]
[334603206,1723321847516,-5135.321616,0.0002017,2]
[334603207,1723321847526,-237.693936,0.0002017,2]
[334603208,1723321847535,-237.693936,0.0002017,2]
[334603209,1723321847544,-165.056255,0.00020218,2]
[334603210,1723321847553,-153.172827,0.00020218,2]
[334603211,1723321847563,-705.958735,0.00020231,2]
[334603212,1723321847572,-852.626181,0.00020231,2]
[334603213,1723321847582,-151.0,0.00020238,2]
[334603214,1723321847591,-6001.52853203,0.000203,2]
[334603215,1723321847601,-151.0,0.00020356,2]
[334603216,1723321847610,-61727.21267195,0.00020377,2]
[334603217,1723321847619,-154.590539,0.00020383,2]
[334603218,1723321847629,-154.590539,0.00020383,2]
[334603219,1723321847639,-579.397852,0.00020383,2]
[334603220,1723321847648,-455.056127,0.00020383,2]
[334603221,1723321847657,-160.0,0.0002047,3]
[334603222,1723321847666,-151.0,0.00020473,2]
[334603223,1723321847676,-705.958735,0.00020478,2]
[334603224,1723321847685,-852.626181,0.00020478,2]
[334603225,1723321847850,-217.070944,0.00020478,2]
[334603226,1723321847859,-217.070944,0.00020478,2]
[334603227,1723321847869,-500.0,0.00020547,7]
[334603228,1723321847878,-500.0,0.00020547,7]
[334603229,1723321847887,-500.0,0.00020547,7]
[334603230,1723321847896,-500.0,0.00020547,7]
[334603231,1723321847905,-400.0,0.00020547,7]
[334603232,1723321847914,-151.0,0.00020547,2]
[334603233,1723321847923,-151.0,0.00020547,2]
[334603234,1723321847932,-222.701913,0.00020547,2]
[334603235,1723321847941,-222.701913,0.00020547,2]
[334603236,1723321847951,-165.056255,0.00020549,2]
[334603237,1723321847966,-153.172827,0.00020549,2]
[334603238,1723321847975,-658.9597,0.00020575,2]
[334603239,1723321847984,-151.0,0.0002059,2]
[334603240,1723321847993,-863.258601,0.00020632,2]
[334603241,1723321848003,-1011.699091,0.00020632,2]
[334603242,1723321848013,-202.339818,0.00020632,2]
[334603243,1723321848022,-202.339818,0.00020632,2]
[334603244,1723321848031,-172.651721,0.00020632,2]
[334603245,1723321848040,-172.65172,0.00020632,2]
[334603246,1723321848049,-267.387867,0.00020632,2]
[334603247,1723321848058,-457.885204,0.00020632,2]
[334603248,1723321848067,-170.767705,0.00020632,2]
[334603249,1723321848076,-212.980932,0.00020632,2]
[334603250,1723321848086,-579.397852,0.00020632,2]
[334603251,1723321848100,-455.056127,0.00020632,2]
[334603252,1723321848110,-151.0,0.00020632,2]
[334603253,1723321848120,-237.693936,0.00020632,2]
[334603254,1723321848130,-237.693936,0.00020632,2]
[334603255,1723321848139,-683.07082,0.00020637,2]
[334603256,1723321848149,-441.292156,0.00020637,2]
[334603257,1723321848158,-3200.0,0.00020695,2]
[334603258,1723321848167,-150.0,0.00020695,2]
[334603259,1723321848179,-53784.36647554,0.00020696,2]
[334603260,1723321848188,-300.0,0.000207,9]
[334603261,1723321848198,-602.0,0.000207,2]
[334603262,1723321848210,-151.0,0.00020708,2]
[334603263,1723321848218,-151.0,0.00020708,2]
[334603264,1723321848227,-25000.0,0.00020721,2]
[334603265,1723321848236,-705.958735,0.00020724,2]
[334603266,1723321848245,-852.626181,0.00020724,2]
[334603267,1723321848254,-500.0,0.000208,2]
[334603268,1723321848262,-323.75256006,0.0002082,3]
[334603269,1723321848271,-800.02,0.00020821,3]
[334603270,1723321848281,-500.0,0.00020821,2]
[334603271,1723321848291,-499.15623592,0.00020821,3]
[334603272,1723321848300,-502.85179291,0.00020821,3]
[334603273,1723321848310,-307.00971664,0.00020821,3]
[334603274,1723321848320,-500.0,0.00020821,3]
[334603275,1723321848329,-340.34802559,0.00020821,3]
[334603276,1723321848339,-500.0,0.00020821,3]
[334603277,1723321848348,-565.29734231,0.00020821,3]
[334603278,1723321848358,-500.0,0.00020821,3]
[334603279,1723321848367,-196.75710832,0.00020821,3]
[334603280,1723321848376,-505.25367923,0.00020821,3]
[334603281,1723321848386,-500.0,0.00020821,3]
[334603282,1723321848395,-500.0,0.00020821,3]
[334603283,1723321848404,-516.41732021,0.00020821,3]
[334603284,1723321848413,-548.54323977,0.00020821,3]
[334603285,1723321848423,-503.75870773,0.00020821,3]
[334603286,1723321848432,-532.04310518,0.00020821,3]
[334603287,1723321848442,-500.0,0.00020821,3]
[334603288,1723321848451,-500.0,0.00020821,3]
[334603289,1723321848463,-355.22870848,0.00020821,3]
[334603290,1723321848472,-500.0,0.00020821,3]
[334603291,1723321848482,-505.29704672,0.00020821,3]
[334603292,1723321848491,-509.49445872,0.00020821,3]
[334603293,1723321848500,-500.0,0.00020821,3]
[334603294,1723321848510,-684.91,0.00020821,3]
[334603295,1723321848519,-515.35381011,0.00020821,3]
[334603296,1723321848529,-500.0,0.00020821,3]
[334603297,1723321848539,-509.15636668,0.00020821,3]
[334603298,1723321848548,-500.0,0.00020821,3]
[334603299,1723321848557,-219.30487628,0.00020821,3]
[334603300,1723321848567,-687.21,0.00020821,3]
[334603301,1723321848577,-500.0,0.00020821,3]
[334603302,1723321848586,-500.0,0.00020821,3]
[334603303,1723321848595,-500.0,0.00020821,3]
[334603304,1723321848605,-500.0,0.00020821,3]
[334603305,1723321848614,-500.0,0.00020821,3]
[334603306,1723321848624,-505.11462333,0.00020821,3]
[334603307,1723321848634,-500.0,0.00020821,3]
[334603308,1723321848643,-500.0,0.00020821,3]
[334603309,1723321848652,-500.0,0.00020821,3]
[334603310,1723321848661,-500.0,0.00020821,3]
[334603311,1723321848670,-503.64010005,0.00020821,3]
[334603312,1723321848679,-500.0,0.00020821,3]
[334603313,1723321848688,-201.40103009,0.00020821,3]
[334603314,1723321848697,-503.22265799,0.00020821,3]
[334603315,1723321848711,-506.19776692,0.00020821,3]
[334603316,1723321848722,-500.0,0.00020821,3]
[334603317,1723321848732,-589.89506067,0.00020821,3]
[334603318,1723321848741,-500.0,0.00020821,3]
[334603319,1723321848750,-500.0,0.00020821,3]
[334603320,1723321848759,-967.94,0.00020821,3]
[334603321,1723321848768,-500.0,0.00020821,3]
[334603322,1723321848777,-186.76007375,0.00020821,3]
[334603323,1723321848787,-500.0,0.00020821,3]
[334603324,1723321848796,-510.84567934,0.00020821,3]
[334603325,1723321848806,-500.0,0.00020821,3]
[334603326,1723321848815,-1020.31,0.00020821,3]
[334603327,1723321848824,-500.0,0.00020821,3]
[334603328,1723321848834,-200.0,0.00020821,3]
[334603329,1723321848844,-500.0,0.00020821,3]
[334603330,1723321848853,-432.16777112,0.00020821,3]
[334603331,1723321848862,-500.0,0.00020821,3]
[334603332,1723321848871,-503.14562305,0.00020821,3]
[334603333,1723321848881,-515.01,0.00020821,3]
[334603334,1723321848890,-500.0,0.00020821,3]
[334603335,1723321848899,-500.0,0.00020821,3]
[334603336,1723321848908,-500.0,0.00020821,3]
[334603337,1723321848917,-500.0,0.00020821,3]
[334603338,1723321848927,-500.0,0.00020821,3]
[334603339,1723321848936,-500.0,0.00020821,3]
[334603340,1723321848945,-500.0,0.00020821,3]
[334603341,1723321848956,-500.0,0.00020821,3]
[334603342,1723321848965,-500.0,0.00020821,3]
[334603343,1723321848975,-500.0,0.00020821,3]
[334603344,1723321848984,-505.25550787,0.00020821,3]
[334603345,1723321848993,-500.0,0.00020821,3]
[334603346,1723321849002,-503.98973753,0.00020821,3]
[334603347,1723321849011,-502.81179889,0.00020821,3]
[334603348,1723321849021,-567.7139551,0.00020821,3]
[334603349,1723321849031,-500.0,0.00020821,3]
[334603350,1723321849041,-500.0,0.00020821,3]
[334603351,1723321849050,-500.0,0.00020821,3]
[334603352,1723321849059,-500.0,0.00020821,3]
[334603353,1723321849069,-500.0,0.00020821,3]
[334603354,1723321849078,-503.45749089,0.00020821,3]
[334603355,1723321849088,-500.0,0.00020821,3]
[334603356,1723321849101,-500.0,0.00020821,3]
[334603357,1723321849110,-500.0,0.00020821,3]
[334603358,1723321849120,-500.0,0.00020821,3]
[334603359,1723321849129,-1728.28,0.00020821,3]
[334603360,1723321849139,-495.66488613,0.00020821,3]
[334603361,1723321849149,-500.0,0.00020821,3]
[334603362,1723321849159,-500.0,0.00020821,3]
[334603363,1723321849168,-978.65,0.00020821,3]
[334603364,1723321849179,-500.0,0.00020821,3]
[334603365,1723321849189,-500.0,0.00020821,3]
[334603366,1723321849199,-500.0,0.00020821,3]
[334603367,1723321849208,-500.0,0.00020821,3]
[334603368,1723321849218,-507.49885772,0.00020821,3]
[334603369,1723321849228,-500.0,0.00020821,3]
[334603370,1723321849237,-500.0,0.00020821,3]
[334603371,1723321849246,-500.0,0.00020821,3]
[334603372,1723321849255,-500.0,0.00020821,3]
[334603373,1723321849265,-500.0,0.00020821,3]
[334603374,1723321849275,-500.0,0.00020821,3]
[334603375,1723321849284,-994.33,0.00020821,3]
[334603376,1723321849294,-518.97,0.00020821,3]
[334603377,1723321849303,-424.3057506,0.00020821,3]
[334603378,1723321849312,-500.0,0.00020821,3]
[334603379,1723321849322,-461.29126,0.00020821,3]
[334603380,1723321849331,-500.0,0.00020821,3]
[334603381,1723321849341,-500.0,0.00020821,3]
[334603382,1723321849350,-500.0,0.00020821,3]
[334603383,1723321849359,-550.39794094,0.00020821,3]
[334603384,1723321849369,-500.0,0.00020821,3]
[334603385,1723321849379,-500.0,0.00020821,3]
[334603386,1723321849388,-850.09,0.00020821,3]
[334603387,1723321849397,-586.61,0.00020821,3]
[334603388,1723321849406,-507.01360164,0.00020821,3]
[334603389,1723321849416,-500.0,0.00020821,3]
[334603390,1723321849425,-507.93,0.00020821,3]
[334603391,1723321849436,-685.96,0.00020821,3]
[334603392,1723321849446,-500.0,0.00020821,3]
[334603393,1723321849455,-205.72356645,0.00020821,3]
[334603394,1723321849465,-500.0,0.00020821,3]
[334603395,1723321849474,-506.00562016,0.00020821,3]
[334603396,1723321849485,-500.0,0.00020821,3]
[334603397,1723321849495,-500.0,0.00020821,3]
[334603398,1723321849504,-711.65,0.00020821,3]
[334603399,1723321849513,-500.0,0.00020821,2]
[334603400,1723321849523,-500.0,0.00020821,2]
[334603401,1723321849533,-500.0,0.00020821,3]
[334603402,1723321849543,-500.0,0.00020821,2]
[334603403,1723321849552,-500.0,0.00020821,2]
[334603404,1723321849562,-500.0,0.00020821,3]
[334603405,1723321849572,-500.0,0.00020821,2]
[334603406,1723321849581,-570.97056746,0.00020821,2]
[334603407,1723321849591,-500.0,0.00020821,3]
[334603408,1723321849600,-500.0,0.00020821,3]
[334603409,1723321849610,-505.43566481,0.00020821,3]
[334603410,1723321849620,-438.58578554,0.00020821,3]
[334603411,1723321849630,-293.26465577,0.00020821,3]
[334603412,1723321849639,-882.89,0.00020821,3]
[334603413,1723321849649,-500.0,0.00020821,3]
[334603414,1723321849658,-500.0,0.00020821,3]
[334603415,1723321849667,-500.0,0.00020821,3]
[334603416,1723321849677,-500.0,0.00020821,3]
[334603417,1723321849687,-500.0,0.00020821,3]
[334603418,1723321849696,-500.0,0.00020821,3]
[334603419,1723321849706,-500.0,0.00020821,3]
[334603420,1723321849715,-500.0,0.00020821,3]
[334603421,1723321849725,-600.0,0.00020821,3]
[334603422,1723321849734,-507.66033602,0.00020821,3]
[334603423,1723321849743,-500.0,0.00020821,3]
[334603424,1723321849753,-500.0,0.00020821,3]
[334603425,1723321849763,-500.0,0.00020821,3]
[334603426,1723321849773,-500.0,0.00020821,3]
[334603427,1723321849782,-500.0,0.00020821,3]
[334603428,1723321849792,-500.0,0.00020821,3]
[334603429,1723321849802,-500.0,0.00020821,3]
[334603430,1723321849811,-500.0,0.00020821,3]
[334603431,1723321849821,-500.0,0.00020821,3]